Cogmind - Beta 11.1 @@@ ROGUE MODE // 2022.09.05 @ 09:47:57 Player: deadnoob Result: Destroyed by G-34 Mercenary with Small Laser Performance ------------- Evolutions (0) 0 Regions Visited (2) 400 Robots Destroyed (20) 100 Value Destroyed (615) 615 Prototype IDs (2) 40 Alien Tech Used (0) 0 Bonus (0) 0 TOTAL SCORE: 1155 Bonus ------- None Cogmind --------- Core Integrity 0/250 Matter 293/300 Energy 150/150 System Corruption 0% Temperature Cool (6) Movement Walking (190) Ox1 Location -10/Mines Parts ------- > --- POWER (1) -------- Light Angular Momentum Engine > --- PROPULSION (2) --- Aluminum Leg Carbon-fiber Leg > --- UTILITY (2) ------ Large Storage Unit Reaction Control System > --- WEAPON (2) ------- Light Assault Rifle Light Assault Rifle > --- INVENTORY (15) --- Light Ion Engine Aluminum Leg Aluminum Leg Compact Wheel Flight Unit Flight Unit Improved Heat Sink Sensor Array Improved Terrain Scanner Long-range Tractor Beam Bomb Drone Bay Particle Gun Light Assault Rifle Mining Laser Peak State ------------ > --- POWER ------------ Light Angular Momentum Engine > --- PROPULSION ------- Aluminum Leg Carbon-fiber Leg > --- UTILITY ---------- Large Storage Unit Reaction Control System > --- WEAPON ----------- Particle Gun Light Assault Rifle > --- INVENTORY -------- Aluminum Leg Aluminum Leg Compact Wheel Improved Heat Sink Sensor Array Improved Terrain Scanner Long-range Tractor Beam Bomb Drone Bay Light Assault Rifle Light Assault Rifle Mining Laser [Rating: 19] Favorites ----------- Power Ion Engine Engine Ion Engine Propulsion Aluminum Leg Treads Light Treads Leg Aluminum Leg Wheel Wheel Utility Sensor Array Device Sensor Array Storage Small Storage Unit Weapon Light Assault Rifle Energy Gun Small Laser Ballistic Gun Light Assault Rifle Special Weapon Mining Laser Build | -11 -10 -10 ------- Run | Scr Mat Min Slots Evolved . | . . . Power . | . . . Propulsion . | . . . Utility . | . . . Weapon . | . . . Parts Attached 30 | 9 10 11 Power 3 | 1 1 1 Engine 3 | 1 1 1 Core . | . . . Reactor . | . . . Propulsion 13 | 5 5 3 Treads 2 | 1 1 . Leg 9 | 2 4 3 Wheel 2 | 2 . . Hover . | . . . Flight . | . . . Utility 6 | 1 2 3 Device 3 | . 1 2 Storage 3 | 1 1 1 Processor . | . . . Hackware . | . . . Protection . | . . . Artifact . | . . . Weapon 8 | 2 2 4 Energy Gun 2 | . 1 1 Energy Cannon . | . . . Ballistic Gun 5 | 2 1 2 Ballistic Cannon . | . . . Launcher . | . . . Special Weapon 1 | . . 1 Impact Weapon . | . . . Slashing Weapon . | . . . Piercing Weapon . | . . . Special Melee Weapon . | . . . Unidentified Prototypes . | . . . Parts Lost 6 | . 4 2 Power 1 | . 1 . Propulsion 1 | . 1 . Utility . | . . . Weapon 4 | . 2 2 Highest Loss Streak 2 | . 2 1 To Critical Strikes 1 | . . 1 Average Slot Usage (%) 93 | . 92 94 Engine 11 | . 8 14 Treads 5 | . 12 . Leg 19 | . 9 28 Wheel 2 | . 5 . Device 11 | . 13 8 Storage 14 | . 14 14 Energy Gun 10 | . 6 13 Ballistic Gun 16 | . 20 12 Special Weapon 1 | . . 2 Naked Turns . | . . . Heaviest Build 34 | 10 19 34 Greatest Support 40 | 20 40 25 Greatest Overweight (x) 3 | 3 1 1 Average Overweight (x) . | . . . Largest Inventory Capacity 15 | 8 10 15 Average Capacity 10 | 7 8 12 Most Carried 15 | 5 10 15 Average Carried 9 | 2 7 11 Final Capacity 15 | 8 10 15 Final Carried 15 | 5 10 15 Class Distribution -------------------- 64% | Mutant 35% | Scavenger-Mutant Dominant Class ---------------- Mutant | -10/Materials Scavenger-Mutant | -10/Mines Resources | -11 -10 -10 ----------- Run | Scr Mat Min Matter Collected 642 | 244 280 118 Remotely 45 | . . 45 Salvage Created 785 | . 647 138 Parts 52 | . 38 14 Haulers Intercepted . | . . . Recyclers Shooed . | . . . Parts Field Recycled . | . . . Retrieved Matter . | . . . Parts Self-Destructed . | . . . Prevented . | . . . Kills | -11 -10 -10 ------- Run | Scr Mat Min Combat Hostiles Destroyed 19 | . 13 6 Guns 19 | . 13 6 Classes Destroyed 5 | . 3 2 Tunneler 1 | . 1 . Watcher 1 | . 1 . Swarmer 3 | . . 3 Grunt 15 | . 13 2 Assembled 1 | . . 1 Best Kill Streak 4 | . 4 3 Combat Bots Only 4 | . 4 3 Max Kills in Single Turn 1 | . 1 1 Gunslinging . | . . . Exploded . | . . . Melee . | . . . Uniques/NPCs Destroyed . | . . . Combat | -11 -10 -10 -------- Run | Scr Mat Min Damage Taken 1158 | . 830 328 Core 254 | . 144 110 Absorbed by Shields . | . . . Core Remaining (%) 100 | 100 . . Volleys Fired 102 | . 73 29 Largest 2 | . 2 2 Hottest 105 | . 60 105 Shots Fired 175 | . 137 38 Gun 164 | . 137 27 Cannon . | . . . Launcher . | . . . Special 11 | . . 11 Kinetic 126 | . 114 12 Thermal 49 | . 23 26 Explosive . | . . . Electromagnetic . | . . . Robot Hit Streak 13 | . 13 5 Robot Miss Streak 5 | . 5 2 Penetration Max . | . . . Secondary Targets . | . . . Shots Hit Robots 104 | . 87 17 Core Hits 51 | . 39 12 Critical Kills 1 | . 1 . Critical Parts Destroyed . | . . . Critical Strikes 1 | . 1 . Destroy 1 | . 1 . Melee Attacks . | . . . Impact . | . . . Slashing . | . . . Piercing . | . . . Sneak Attacks . | . . . Combat Hostiles . | . . . Follow-up Attacks . | . . . Damage Inflicted 1054 | . 848 206 Guns 1025 | . 833 192 Cannons . | . . . Explosions . | . . . Melee . | . . . Ramming 29 | . 15 14 Kinetic 767 | . 670 97 Thermal 258 | . 163 95 Explosive . | . . . Electromagnetic . | . . . Impact . | . . . Slashing . | . . . Piercing . | . . . Highest Corruption . | . . . Average Corruption . | . . . Corruption Purged . | . . . Corruption Blocked . | . . . Overload Shots . | . . . Overflow Damage . | . . . Projectiles . | . . . Explosions . | . . . Melee . | . . . Knockbacks . | . . . Impact . | . . . Kinetic . | . . . Secondary . | . . . Self-Inflicted Damage . | . . . Shots . | . . . Rammed 2 | . 2 . Targets Rammed 9 | . 6 3 Kicked 7 | . 4 3 Crushed . | . . . Highest Temperature 224 | . 42 224 Average Temperature 40 | . 14 57 Received Heat Transfer 588 | . 486 102 Siege Activations . | . . . Robots Corrupted . | . . . Combat Hostiles . | . . . Parts Fried . | . . . Impact Corruptions . | . . . Robots Melted . | . . . Combat Hostiles . | . . . Parts Melted . | . . . Heat Transferred 573 | . 350 223 Parts Sabotaged . | . . . Parts Stolen . | . . . Parts Stripped . | . . . Power Chain Reactions . | . . . Missiles Intercepted . | . . . Alert | -11 -10 -10 ------- Run | Scr Mat Min Peak Influence 167 | . 167 101 Initial 51 | . . 51 Average 61 | . 99 33 Maximum Alert Level . | . . . Low Security (%) 100 | 100 100 100 Level 1 . | . . . Level 2 . | . . . Level 3 . | . . . Level 4 . | . . . Level 5 . | . . . High Security . | . . . Max Security . | . . . Squads Dispatched 4 | . 4 . Investigation 2 | . 2 . Extermination . | . . . Reinforcement 2 | . 2 . Assault . | . . . Garrison . | . . . Intercept . | . . . Searches Triggered . | . . . Construction Impeded . | . . . Haulers Reinforced . | . . . Active Scanning Responses . | . . . Cargo Convoy Interrupts . | . . . Stealth | -11 -10 -10 --------- Run | Scr Mat Min Distress Signals 2 | . 1 1 Communications Jammed . | . . . Distress Signals . | . . . Times Spotted 37 | . 27 10 Peak Tracking Total 5 | . 5 3 Tactical Retreats 2 | . 1 1 Traps | -11 -10 -10 ------- Run | Scr Mat Min Traps Triggered 3 | . 2 1 Indirectly . | . . . Trap Hack Attempts . | . . . Triggered . | . . . Disarmed . | . . . Reprogrammed . | . . . Reused . | . . . Traps Extracted . | . . . Installed . | . . . Triggered . | . . . Machines | -11 -10 -10 ---------- Run | Scr Mat Min Machines Disabled . | . . . Max in Single Turn . | . . . Machines Sabotaged . | . . . Garrisons Compromised . | . . . Overloaded Fab Kills . | . . . Hacking | -11 -10 -10 --------- Run | Scr Mat Min Machines Accessed 6 | . 4 2 Terminals 4 | . 4 . Fabricators . | . . . Repair Stations . | . . . Recycling Units . | . . . Scanalyzers . | . . . Garrison Access . | . . . Total Hacks 16 | . 14 2 Successful 7 | . 5 2 Failed 8 | . 8 . Catastrophic 3 | . 3 . Database Lockouts 1 | . 1 . Manual 12 | . 12 . Terminals 14 | . 14 . Fabricators . | . . . Repair Stations . | . . . Recycling Units . | . . . Scanalyzers . | . . . Garrison Access . | . . . Terminal Hacks 7 | . 5 2 Robot Analysis 1 | . 1 . Prototype ID Bank 1 | . 1 . Open Door 2 | . . 2 Emergency Access Points 1 | . 1 . Alert Level 1 | . 1 . Registered Components 1 | . 1 . Fabricator Hacks . | . . . Repair Station Hacks . | . . . Recycling Unit Hacks . | . . . Scanalyzer . | . . . Garrison Access Hacks . | . . . Unauthorized Hacks . | . . . Terminals . | . . . Fabricators . | . . . Repair Stations . | . . . Recycling Units . | . . . Scanalyzers . | . . . Garrison Access . | . . . Data Cores Recovered . | . . . Used . | . . . Hacking Detections 5 | . 5 . Full Trace Events 2 | . 2 . Feedback Events . | . . . Feedback Blocked . | . . . Robot Schematics Acquired . | . . . Robots Built . | . . . Authchips . | . . . Time . | . . . Total Robot Build Rating . | . . . Part Schematics Acquired . | . . . Parts Built . | . . . Authchips . | . . . Time . | . . . Total Part Build Rating . | . . . Parts Repaired . | . . . Time . | . . . Parts Recycled . | . . . Recycled Matter . | . . . Retrieved Matter . | . . . Retrieved Components . | . . . Parts Scanalyzed . | . . . Part Schematics Acquired . | . . . Parts Damaged . | . . . Bothacking | -11 -10 -10 ------------ Run | Scr Mat Min Used RIF Installer . | . . . Robots Hacked . | . . . Non-combat . | . . . Combat . | . . . Robot Hacks Applied . | . . . Relay Couplers Released . | . . . Fabnet Peak Effective % . | . . . Robots Rewired . | . . . Allies Hacked . | . . . Hacks Repelled . | . . . Allies | -11 -10 -10 -------- Run | Scr Mat Min Total Allies . | . . . Largest Group . | . . . Highest-Rated Group . | . . . Highest-Rated Ally . | . . . Total Orders . | . . . Ally Attacks . | . . . Total Damage . | . . . Kills . | . . . Allies Corrupted . | . . . Allies Melted . | . . . Intel | -11 -10 -10 ------- Run | Scr Mat Min Robot Analysis Total 1 | . 1 . Derelict Logs Recovered 1 | . . 1 Drone Launches . | . . . Drone Recoveries . | . . . Exploration | -11 -10 -10 ------------- Run | Scr Mat Min Turns Passed 2234 | 69 977 1188 Spaces Moved 1200 | 41 516 643 Core 9 | 9 . . Treads 116 | . 116 . Legs 897 | 31 223 643 Wheels 178 | 1 177 . Hover . | . . . Flight . | . . . Fastest Speed 50 | 50 80 120 Average Speed 137 | 124 129 144 Slowest Speed 200 | 200 190 190 Overloaded Moves . | . . . Propulsion Burnouts . | . . . Robots Hopped . | . . . Cave-ins Triggered . | . . . Exploration Rate (%) 57 | 3 84 84 Regions Visited 2 Branch Regions 1 Pre-discovered Areas . | . . . Known Exits Taken . | . . . Unknown Exits Taken 2 | 1 1 . Scrap Searched 1 | . . 1 Spaces Dug 7 | . . 7 Terrain Destroyed 7 | . . 7 Melee . | . . . Projectile 7 | . . 7 AOE . | . . . Terrain Rammed . | . . . Walls Destroyed . | . . . Machines Disabled . | . . . Actions | -11 -10 -10 --------- Run | Scr Mat Min Total 1604 | 54 701 849 Wait 232 | . 90 142 Move 1198 | 40 515 643 Hop . | . . . Pick Up 20 | 5 5 10 Fast Attach 12 | 6 4 2 Attach 2 | . 1 1 Detach 1 | . . 1 Swap 16 | 3 5 8 Drop 12 | . 2 10 Fire 102 | . 73 29 Melee . | . . . Ram . | . . . Kick 7 | . 4 3 Crush 2 | . 2 . Escape Stasis . | . . . Rewire . | . . . Trap . | . . . Miscellaneous . | . . . Route ------- -11/Scrapyard -10/Materials (discovered 5 exits: [*Mat x3] / *Min x2) -10/Mines History --------- Turn | Location | Event 2 | -11/Scrapyard | Met Revision 17 18 | -11/Scrapyard | Discovered new exit (range 16) 70 | -11/Scrapyard | Entered Materials 292 | -10/Materials | Discovered new exit (range 14) 310 | -10/Materials | Build established: Mutant 522 | -10/Materials | Discovered new exit (range 16) 689 | -10/Materials | Discovered new exit (range 10) 761 | -10/Materials | Discovered new exit (range 15) 769 | -10/Materials | Discovered new exit (range 14) 775 | -10/Materials | Central database locked down 943 | -10/Materials | Core integrity fell below 50% 1047 | -10/Materials | Entered Mines 1160 | -10/Mines | Build established: Scavenger-Mutant 1224 | -10/Mines | Found the Drone Emporium 1230 | -10/Mines | Found Prototype Device 1347 | -10/Mines | Learned Materials terminal intel 1661 | -10/Mines | Met a Derelict who couldn't figure out how to use a Trap Extractor 1962 | -10/Mines | Build established: Mutant 2015 | -10/Mines | Excavation squad dispatched 2015 | -10/Mines | A large section of the Mines collapsed 2024 | -10/Mines | Core integrity fell below 20% 2235 | -10/Mines | Destroyed by G-34 Mercenary with Small Laser Last Messages --------------- 01822_ S-10 Pest destroyed. 01825_ Critical hit (Destroy). 01825_ Sml. Laser destroyed. 01837_ S-10 Pest destroyed. 01839_ Acquired 10 matter. 01847_ Acquired Lgt. Assault Rifle. 01855_ Acquired 10 matter. 01863_ Acquired Lgt. Assault Rifle. 01868_ Acquired Lgt. Ion Engine. 01871_ Acquired Flight Unit. 01880_ Dropped Flight Unit. 01880_ Acquired Flight Unit. 01884_ Dropped Flight Unit. 01884_ Acquired Flight Unit. 02015_ ALERT: Suspicious cave-in, suspected derelict activity in mines. Dispatching escorted excavation squad. 02026_ as-34756 destroyed. 02030_ Acquired 14 matter. 02193_ K-01 Serf collects debris. 02234_ Kicked G-34 Mercenary. Map ----- +----------------------------------------------------+ | ##??####??????#### #??????? | | #### ##?????# #??????? | | ## ##????# #??????? | | ## ##???# ###??????? | | ### ##??# #????????? | | ### #??# #????????? | | ### #??# #????????? | | ### #### #????????? | | ## #????????? | | ## ###??????? | | ## ## ########"##??????? | | ###### ##??????## #??????? | | ### # #???????#"##??????? | | #??# #???????## ##?????? | | #??# #?????###%###?????? | | #### #?###### #"###????? | | #?# # ### "#????? | | ### #?# ###"#" #"#????? | | #### #?# #?###"####????? | | ### ### #####%#####???? | | ## ### *%" %=%%!!!%==#???? | | ?###### ##############=#???? | | ??????# #????????????#*#???? | | ??????# ##???????????# #???? | | ??????# ##?????????##g#???? | | ??????# #????????## @##??? | | #?????# #????????# #??? | | ###???# # #????????# #??? | | ##??# ## ##????????# ##??? | | #### #?##????????# #???? | | #???????????# #???? | | #???????????# #???? | | ##########???????????# ???? | | ?????????????????????# ???? | | ?????????????????????# ??? | | ?????????????????????#g ??? | | ????????????????????? ?? | | ????????????????????? $#?? | | #??????????????????? ####?? | | #?????????????????? #?????? | | #????????????????? #??????? | | ##????????????????? #???????? | | ???????????????????? ????????? | | ??????????????????????????????? | | ??????????????????????????????? | | ??????????????????????????????? | | ??????????????????????????????? | | ??????????????????????????????? | | ??????????????????????????????? | | ??????????????????????????????? | +----------------------------------------------------+ Best States ------------- Heat Dissipation 25 Energy Generation 18 Energy Capacity 250 Matter Stores 300 Matter Capacity 300 Sight Range 16 Robot Scan Range 14 Terrain Scan Density 10 Evasion (%) 55 Recoil Reduction 2 Item Schematics ----------------- None Robot Schematics ------------------ None Fabricated ------------ Nothing Alien Tech Used ----------------- None Achievements -------------- None Challenges ------------ None Game ------ Seed ImpactBombPick Manual? 0 Play Time 00:17:35 Cumulative 62.1 hours Start 2022.09.05 @ 09:31:23 End 2022.09.05 @ 09:47:57 Sessions 1 Manual Loads 0 Difficulty Rogue Special Mode None Game No. 93 Rogue 93 Adventurer 0 Explorer 0 Win Type - Total 0 Types 0/0/0/0/0/0/0/0/0 Lore% 54 Gallery% 51 Achievement% 42 Wizard Run 0 Options --------- ASCII 0 Keyboard 0 Movement Numpad Keybinds 0 Fullscreen 2 Font 18/SmallcapsGlow Map View 76x50 Tactical HUD 1 Map Filters NONE Filters NONE Steam 1 RUN: c4ff8886-ffba-4a36-8415-c70e4f2c0f34